bitfinex/quotes_ETHUSD_20251011
["timestamp","ask_amount","ask_price","bid_price","bid_amount"]
[1760224643442,7.643096,3745.4,3745.3,6.41573496]
[1760224643827,7.643096,3745.4,3745.3,7.32452226]
[1760224643828,1.92,3745.4,3745.3,7.32452226]
[1760224644635,1.92,3745.4,3745.3,8.55452226]
[1760224644840,0.31211346,3746.8,3745.3,8.55452226]
[1760224644841,0.81569598,3747.0,3746.2,2.66936488]
[1760224645058,0.1328,3745.6,3745.5,2.66987051]
[1760224645368,0.1328,3745.6,3745.5,3.56948848]
[1760224646165,0.1328,3745.6,3745.5,4.79948848]
[1760224647073,0.1328,3745.6,3745.5,3.89987051]
[1760224647229,8.238693,3745.6,3745.5,3.89987051]
[1760224647432,8.238693,3745.6,3745.5,5.12987051]
[1760224648369,8.238693,3745.6,3745.5,2.46]
[1760224648370,8.872293,3745.6,3745.5,2.46]
[1760224648531,9.27453316,3745.6,3745.5,2.46]
[1760224648732,9.27453316,3745.6,3745.5,3.69]
[1760224649156,3.25324016,3745.6,3745.5,3.69]
[1760224649374,9.27453316,3745.6,3745.5,3.69]
[1760224649535,6.974734,3745.6,3745.5,3.69]
[1760224649729,6.974734,3745.6,3745.5,6.35987051]
[1760224649730,6.514913,3745.6,3745.5,6.35987051]
[1760224650134,2.0846,3745.6,3745.5,7.58987051]
[1760224650344,8.50813316,3745.6,3745.5,4.92]
[1760224650569,7.941293,3745.6,3745.5,7.58987051]
[1760224650863,8.105893,3745.6,3745.5,7.58987051]
[1760224651162,2.0846,3745.6,3745.5,7.58987051]
[1760224651366,1.92,3745.6,3745.5,7.58987051]
[1760224651567,4.926412,3745.6,3745.5,8.81987051]
[1760224651765,5.091012,3745.6,3745.5,6.15]
[1760224651989,1.92,3745.6,3745.5,8.81987051]
[1760224653085,5.547623,3745.6,3745.5,8.81987051]
[1760224653379,5.547623,3745.6,3745.5,10.04987051]
[1760224653380,1.92,3745.6,3745.5,10.04987051]
[1760224653572,5.884635,3745.6,3745.5,11.41853384]
[1760224653755,4.113902,3745.6,3745.5,11.41853384]
[1760224653957,2.637707,3746.3,3746.1,2.66939171]
[1760224654157,0.1646,3746.6,3746.3,2.66928075]
[1760224654158,6.021293,3746.5,3746.3,2.66928075]
[1760224654481,8.105893,3746.4,3746.3,2.66928075]
[1760224654683,8.105893,3746.4,3746.3,3.89928075]
[1760224654684,6.021293,3746.4,3746.3,3.89928075]
[1760224654858,6.021293,3747.2,3747.1,2.66866986]
[1760224655058,2.6679921,3749.6,3746.9,2.66882381]
[1760224655059,0.41857883,3748.1,3748.0,2.66808964]
[1760224655261,0.31211346,3748.7,3748.2,2.66790076]
[1760224655262,0.1625,3748.7,3748.2,2.66790076]
[1760224655593,0.1625,3748.7,3747.1,0.4418]
[1760224655594,1.92,3748.1,3746.6,0.4418]
[1760224655885,5.187903,3747.8,3747.7,2.66829228]
[1760224656052,4.619106,3747.9,3747.8,2.66823202]
[1760224656249,6.021293,3748.2,3748.1,2.66801846]
[1760224656453,7.941293,3748.2,3748.1,2.66801846]
[1760224656654,0.31211346,3748.6,3748.4,2.66780493]
[1760224656655,6.021293,3748.6,3748.4,2.66780493]
[1760224656862,6.021293,3748.6,3747.7,2.66828997]
[1760224656863,0.1625,3748.6,3748.5,2.66773376]
[1760224657087,7.941293,3748.6,3748.5,2.66773376]
[1760224657389,8.103793,3748.6,3748.5,2.66773376]
[1760224658987,7.941293,3748.6,3748.5,3.89773376]
[1760224660169,7.941293,3748.6,3748.5,5.12773376]
[1760224660494,0.001,3748.8,3748.7,2.66759143]
[1760224660698,2.915079,3748.8,3748.7,2.66759143]
[1760224661076,2.123079,3748.8,3748.7,2.66759143]
[1760224661275,0.001,3748.8,3748.7,3.10229143]
[1760224661498,0.1338,3748.8,3748.7,3.92529395]
[1760224661700,0.1338,3748.8,3748.7,5.15529395]
[1760224662103,0.1338,3748.8,3748.7,3.89759143]
[1760224663180,0.1338,3748.8,3748.7,5.12759143]
[1760224663387,0.1338,3748.8,3748.7,2.46]
[1760224663388,6.184793,3748.8,3748.7,2.46]
[1760224663587,8.104793,3748.8,3748.7,2.46]
[1760224664596,9.45274662,3748.8,3748.7,3.69]
[1760224664775,7.942293,3748.8,3748.7,3.69]
[1760224664975,7.942293,3748.8,3748.7,6.35759143]
[1760224665374,4.640296,3748.8,3748.7,6.35759143]
[1760224665793,4.640296,3748.8,3748.7,7.58759143]
[1760224666211,4.640296,3748.8,3748.7,8.02229143]
[1760224666895,0.001,3748.8,3748.7,9.33729365]
[1760224667294,0.001,3748.8,3748.7,10.56729365]
[1760224668705,0.001,3748.8,3748.7,11.79729365]
[1760224669220,7.942293,3748.8,3748.7,10.04759143]
[1760224669520,1.921,3748.8,3748.7,10.04759143]
[1760224669717,1.921,3748.8,3748.7,7.38]
[1760224669718,4.006635,3748.8,3748.7,7.38]
[1760224669923,4.006635,3748.8,3748.7,8.61]
[1760224670087,4.90028862,3748.8,3748.7,8.61]
[1760224670421,8.83594662,3748.8,3748.7,8.61]
[1760224670626,8.50866862,3748.8,3748.7,8.61]
[1760224670842,1.921,3748.8,3748.7,8.61]
[1760224671303,1.921,3748.8,3748.7,12.50759143]
[1760224671485,7.447291,3748.8,3748.7,12.50759143]
[1760224671688,1.921,3748.8,3748.7,12.50759143]
[1760224672000,6.102794,3748.8,3748.7,12.50759143]
[1760224672719,1.921,3748.8,3748.7,13.73759143]
[1760224672919,1.921,3748.8,3748.7,14.18419143]
[1760224674018,1.921,3748.8,3748.7,15.41419143]
[1760224676290,1.921,3748.8,3748.7,16.64419143]
[1760224676618,1.921,3748.8,3748.7,16.19759143]
[1760224677219,1.921,3748.8,3748.7,16.64419143]
[1760224677519,0.001,3749.2,3748.7,16.64419143]
[1760224677520,0.001,3749.2,3749.1,2.66730682]
[1760224677700,0.001,3749.2,3749.1,2.80010682]
[1760224678101,0.001,3749.2,3749.1,3.24670682]
[1760224679023,0.001,3749.2,3749.1,4.47670682]
[1760224679235,0.001,3749.2,3749.1,5.19111736]
[1760224680293,0.001,3749.2,3749.1,5.05831736]
[1760224680495,0.001,3749.2,3749.1,6.28831736]
[1760224681697,0.001,3749.2,3749.1,7.51831736]
[1760224682133,0.001,3749.2,3749.1,6.35730682]
[1760224682333,7.942293,3749.2,3749.1,6.35730682]
[1760224683235,6.711248,3749.2,3749.1,8.03390682]
[1760224683429,1.921,3749.2,3749.1,8.03390682]
[1760224683630,1.921,3749.2,3749.1,7.58730682]
[1760224683832,1.921,3749.2,3749.1,8.03390682]
[1760224684032,1.921,3749.2,3749.1,7.58730682]
[1760224684557,7.41176,3749.2,3749.1,7.58730682]
[1760224684765,6.768479,3749.2,3749.1,8.81730682]
[1760224685260,7.942293,3749.2,3749.1,8.81730682]
[1760224685563,4.115371,3749.2,3749.1,8.81730682]
[1760224685750,7.942293,3749.2,3749.1,8.81730682]
[1760224685939,7.942293,3749.2,3749.1,10.04730682]
[1760224686428,7.942293,3749.2,3749.1,7.38]
[1760224686631,5.361298,3749.2,3749.1,7.38]
[1760224686835,6.648162,3749.2,3749.1,10.04730682]
[1760224687238,2.1123,3749.2,3749.1,7.38]
[1760224687437,8.133593,3749.2,3749.1,8.61]
[1760224688372,2.1123,3749.2,3749.1,8.61]
[1760224688559,8.133593,3749.2,3749.1,8.61]
[1760224688747,8.133593,3749.2,3749.1,9.84]
[1760224688944,7.942293,3749.2,3749.1,9.84]
[1760224689141,1.921,3749.2,3749.1,12.50730682]
[1760224689340,7.942293,3749.2,3749.1,12.50730682]
[1760224689736,6.40506,3749.2,3749.1,12.50730682]
[1760224689949,1.921,3749.2,3749.1,12.50730682]
[1760224690148,7.942293,3749.2,3749.1,13.73730682]
[1760224690349,1.921,3749.2,3749.1,13.73730682]
[1760224690550,7.942293,3749.2,3749.1,13.73730682]
[1760224690871,1.921,3749.2,3749.1,13.73730682]
[1760224691236,4.387632,3749.2,3749.1,13.73730682]
[1760224691463,5.649079,3749.2,3749.1,14.96730682]
[1760224691664,1.921,3749.2,3749.1,14.96730682]
[1760224692255,1.921,3749.2,3749.1,17.17737737]
[1760224692256,0.001,3749.2,3749.1,17.17737737]
[1760224692455,0.001,3749.2,3749.1,17.31017737]
[1760224692845,0.001,3749.2,3749.1,18.54017737]
[1760224694257,0.001,3749.2,3749.1,19.77017737]
[1760224695683,0.001,3749.2,3749.1,21.00017737]
[1760224696580,0.001,3749.2,3749.1,21.63377737]
[1760224696781,0.001,3749.2,3749.1,21.00017737]
[1760224696953,0.001,3749.2,3749.1,22.23017737]
[1760224697375,0.001,3749.2,3749.1,19.88730682]
[1760224697674,7.942293,3749.2,3749.1,19.88730682]
[1760224698370,8.133893,3749.2,3749.1,17.22]
[1760224698575,8.133893,3749.2,3749.1,18.45]
[1760224698576,8.767493,3749.2,3749.1,18.45]
[1760224698762,12.11558067,3749.2,3749.1,18.45]
[1760224699161,12.40227668,3749.2,3749.1,17.41933822]
[1760224699544,6.38098368,3749.2,3749.1,17.41933822]
[1760224699878,36.38098368,3749.2,3749.1,18.64933822]
[1760224700448,35.70013168,3749.2,3749.1,18.64933822]
[1760224701272,35.70013168,3749.2,3749.1,19.87933822]
[1760224702182,36.38098368,3749.2,3749.1,19.87933822]
[1760224702570,6.38098368,3749.2,3749.1,21.10933822]
[1760224702895,36.38098368,3749.2,3749.1,21.10933822]
[1760224703904,36.38098368,3749.2,3749.1,22.33933822]
[1760224705276,36.38098368,3749.2,3749.1,23.56933822]
[1760224705897,35.06653168,3749.2,3749.1,23.56933822]
[1760224706087,34.77983567,3749.2,3749.1,23.56933822]
[1760224706390,35.41343567,3749.2,3749.1,23.56933822]
[1760224706604,35.41343567,3749.2,3749.1,24.79933822]
[1760224706910,36.09428767,3749.2,3749.1,24.79933822]
[1760224707571,36.09428767,3749.2,3749.1,9.84664922]
[1760224707986,36.09428767,3749.2,3749.1,11.07664922]
[1760224708207,36.09428767,3749.2,3749.1,5.69279758]
[1760224708412,36.38098368,3749.2,3749.1,5.69279758]
[1760224708808,36.38098368,3749.2,3749.1,5.69479758]
[1760224709305,36.38098368,3749.2,3749.1,6.92479758]
[1760224709684,6.06887022,3749.2,3749.1,6.92479758]
[1760224710010,36.06887022,3749.2,3749.1,6.92479758]
[1760224710728,36.06887022,3749.2,3749.1,8.15479758]
[1760224711903,34.77983567,3749.2,3749.1,8.15479758]
[1760224712221,35.41343567,3749.2,3749.1,9.38479758]
[1760224713495,35.41343567,3749.2,3749.1,10.61479758]
[1760224714805,30.001,3749.2,3749.1,10.61479758]
[1760224715005,0.001,3749.6,3749.5,2.66702226]
[1760224715217,0.001,3749.6,3749.5,2.69369248]
[1760224715415,0.1338,3749.6,3749.5,3.14509248]
[1760224715989,0.001,3749.6,3749.5,3.11842226]
[1760224716190,0.001,3749.6,3749.5,3.96369488]
[1760224716395,0.001,3749.6,3749.5,5.19369488]
[1760224717623,7.555749,3749.6,3749.5,3.89702226]
[1760224717800,1.921,3749.6,3749.5,5.12702226]
[1760224717995,4.519749,3749.6,3749.5,5.12702226]
[1760224718695,11.787975,3749.6,3749.5,5.12702226]
[1760224718893,11.787975,3749.6,3749.5,2.46]
[1760224719096,11.787975,3749.6,3749.5,3.69]
[1760224719097,12.613575,3749.6,3749.5,3.69]
[1760224719557,32.7466,3749.6,3749.5,3.69]
[1760224720025,4.02987,3749.6,3749.5,6.35702226]
[1760224720330,4.02987,3749.6,3749.5,7.25943755]
[1760224720500,4.02987,3749.6,3749.5,8.48943755]
[1760224721098,17.995138,3749.6,3749.5,5.82241529]
[1760224721429,7.050633,3749.6,3749.5,4.92]
[1760224721629,7.050633,3749.6,3749.5,7.58702226]
[1760224722099,6.194779,3749.6,3749.5,8.81702226]
[1760224722524,5.565274,3749.6,3749.5,8.81702226]
[1760224723130,1.921,3749.6,3749.5,6.15]
[1760224723350,15.947636,3749.6,3749.5,6.15]
[1760224723518,18.98332568,3749.6,3749.5,7.38]
[1760224723720,19.29543914,3749.6,3749.5,7.38]
[1760224724132,36.07510314,3749.6,3749.5,7.38]
[1760224724350,35.7063646,3749.6,3749.5,7.38]
[1760224724532,35.39425114,3749.6,3749.5,7.38]
[1760224724925,35.39425114,3749.6,3749.5,8.61]
[1760224725325,36.07510314,3749.6,3749.5,8.61]
[1760224725540,35.39425114,3749.6,3749.5,8.61]
[1760224726135,5.39425114,3749.6,3749.5,8.61]
[1760224726448,32.7273,3749.6,3749.5,9.84]
[1760224726625,32.7273,3749.6,3749.5,9.842]
[1760224726815,17.59184,3749.6,3749.5,9.842]
[1760224727021,20.25879114,3749.6,3749.5,9.842]
[1760224727222,36.07510314,3749.6,3749.5,9.842]
[1760224727647,36.07510314,3749.6,3749.5,11.072]
[1760224729271,36.07510314,3749.6,3749.5,12.302]
[1760224729558,36.07510314,3749.6,3749.1,11.84479758]
[1760224729559,3.30083567,3749.2,3749.1,11.82151458]
[1760224729761,36.07438767,3749.2,3749.1,11.82151458]
[1760224730255,35.39353567,3749.2,3749.1,11.82151458]
[1760224730561,35.39353567,3749.2,3749.1,13.05151458]
[1760224732075,35.39353567,3749.2,3749.1,14.28151458]
[1760224732254,5.39353567,3749.2,3749.1,14.28151458]
[1760224732433,35.39353567,3749.2,3749.1,14.28151458]
[1760224732962,32.7263,3749.2,3749.1,14.28151458]
[1760224733344,32.7263,3749.2,3749.1,15.51151458]
[1760224734169,7.499193,3749.2,3749.1,15.51151458]
[1760224734343,6.678079,3749.2,3749.1,15.51151458]
[1760224734676,31.92,3749.2,3749.1,15.51151458]
[1760224734864,32.0927,3749.2,3749.1,16.74151458]
[1760224735555,32.46143854,3749.2,3749.1,16.74151458]
[1760224736333,32.46143854,3749.2,3749.1,17.97151458]
[1760224736740,36.07438767,3749.2,3749.1,17.97151458]
[1760224737167,35.76227421,3749.2,3749.1,17.97151458]
[1760224737650,35.76227421,3749.2,3749.1,19.20151458]
[1760224738875,36.07438767,3749.2,3749.1,19.20151458]
[1760224739105,36.07438767,3749.2,3749.1,20.43151458]
[1760224740276,31.73708827,3748.8,3748.7,3.692]
[1760224740475,31.73708827,3748.8,3745.8,0.456]
[1760224740476,1.92,3747.2,3746.2,0.6866]
[1760224740691,14.131686,3747.0,3746.9,2.66887293]
[1760224740929,4.41428904,3747.8,3746.9,3.12487293]
[1760224741223,4.41428904,3747.8,3747.7,2.66830322]
[1760224741428,4.41428904,3748.3,3748.0,2.66808964]
[1760224741714,4.41428904,3748.7,3748.6,2.66766259]
[1760224742432,4.41428904,3748.7,3748.1,0.26680896]
[1760224742744,4.41428904,3748.3,3747.5,2.89904351]
[1760224743047,4.41428904,3748.3,3748.0,1.23]
[1760224743194,4.41428904,3748.3,3747.5,0.2306]
[1760224743195,5.10428904,3747.8,3747.7,2.66830322]
[1760224743398,5.10428904,3747.8,3747.7,3.12430322]
[1760224743837,5.10428904,3747.8,3747.7,2.66830322]
[1760224744023,5.23708904,3747.8,3747.7,2.66830322]
[1760224744224,5.10428904,3747.8,3747.7,2.66830322]
[1760224744419,10.89583182,3747.6,3747.5,2.6683985]
[1760224744830,2.43598582,3748.1,3747.9,2.66816083]
[1760224745005,2.43598582,3748.1,3748.0,2.66808964]
[1760224745006,9.71206782,3748.1,3748.0,2.66808964]
[1760224745215,0.51598582,3748.5,3748.4,2.66780493]
[1760224745407,0.51598582,3748.5,3748.4,2.15181911]
[1760224745408,7.60897,3748.5,3748.4,2.15181911]
[1760224745638,6.287147,3748.5,3748.4,2.15181911]
[1760224745945,4.255032,3748.5,3748.4,2.15181911]
[1760224746313,10.379846,3748.5,3748.4,2.15181911]
[1760224746713,10.565746,3748.5,3748.4,2.15181911]
[1760224747038,10.565746,3748.5,3747.5,1.23]
[1760224747039,1.92,3748.2,3748.1,2.66801209]
[1760224747239,1.92,3748.7,3748.1,0.36098138]
[1760224747441,4.253833,3748.5,3748.4,2.66776506]
[1760224747642,1.92,3749.0,3748.8,2.66749756]
[1760224747846,10.379846,3748.9,3748.8,2.66749756]
[1760224748724,10.379846,3748.9,3748.8,3.89749756]
[1760224748725,4.491,3748.9,3748.8,3.89749756]
[1760224748921,0.001,3749.2,3749.1,2.66730682]
[1760224749129,8.460846,3749.2,3749.1,2.66730682]
[1760224749442,10.380846,3749.2,3749.1,2.66730682]
[1760224750155,7.16926,3749.2,3749.1,2.66730682]
[1760224750355,7.16926,3749.2,3749.1,3.89730682]
[1760224750654,5.215794,3749.2,3749.1,3.89730682]
[1760224750867,0.001,3749.2,3749.1,5.01495372]
[1760224751044,0.001,3749.2,3749.1,4.98828066]
[1760224751754,0.001,3750.0,3749.5,2.66702226]
[1760224752132,0.001,3750.0,3749.5,3.12302226]
[1760224752337,0.001,3750.0,3749.5,3.70203643]
[1760224753257,4.636244,3749.6,3749.5,3.89702226]
[1760224753556,5.044998,3749.6,3749.5,3.89702226]
[1760224754358,10.577546,3749.6,3749.5,1.23]
[1760224754543,10.577546,3749.6,3749.5,2.46]
[1760224754964,11.57988454,3749.6,3749.5,2.46]
[1760224755160,14.55894914,3749.6,3749.5,2.46]
[1760224755326,3.30083567,3749.2,3749.1,2.46]
[1760224755529,11.90153367,3749.2,3749.1,2.458]
[1760224755755,12.09623367,3749.2,3749.1,2.458]
[1760224756837,8.748146,3749.2,3749.1,2.458]
[1760224757039,11.41538167,3749.2,3749.1,2.458]
[1760224757263,11.41538167,3749.2,3749.1,3.688]
[1760224757470,8.748146,3749.2,3749.1,3.688]
[1760224758187,8.114546,3749.2,3749.1,3.688]
[1760224758391,2.1147,3749.2,3749.1,3.688]
[1760224758589,2.1147,3749.2,3749.1,4.918]
[1760224758590,11.78412021,3749.2,3749.1,4.918]
[1760224758884,9.11688454,3749.2,3749.1,4.918]
[1760224759183,11.78412021,3749.2,3749.1,4.918]
[1760224760300,9.11688454,3749.2,3749.1,4.918]
[1760224760468,12.09623367,3749.2,3749.1,6.148]
[1760224761885,12.09623367,3749.2,3749.1,7.378]
[1760224762380,12.09723367,3749.2,3749.1,7.378]
[1760224763087,8.749146,3749.2,3749.1,7.378]
[1760224763259,8.115546,3749.2,3749.1,8.608]
[1760224763587,8.749146,3749.2,3749.1,8.608]
[1760224763904,8.115546,3749.2,3749.1,8.608]
[1760224764067,8.749146,3749.2,3749.1,8.608]
[1760224764718,8.749146,3749.2,3749.1,9.838]
[1760224765779,8.115546,3749.2,3749.1,9.838]
[1760224765978,2.388932,3749.2,3749.1,13.73530682]
[1760224766183,5.743077,3749.2,3749.1,15.49857796]
[1760224766401,0.001,3749.2,3749.1,15.49857796]
[1760224766601,0.001,3749.2,3749.1,15.96057796]
[1760224766908,3.520064,3749.2,3749.1,15.49857796]
[1760224767209,3.520064,3749.2,3749.1,11.068]
[1760224767375,5.440064,3749.2,3749.1,14.96530682]
[1760224767988,7.920846,3749.2,3749.1,14.96530682]
[1760224768907,1.921,3749.2,3749.1,16.19530682]
[1760224769096,7.920846,3749.2,3749.1,16.19530682]
[1760224769496,1.921,3749.2,3749.1,16.65730682]
[1760224769730,0.001,3749.2,3749.1,18.71278124]
[1760224770437,0.001,3749.2,3749.1,19.94278124]
[1760224772259,0.001,3749.2,3749.1,21.17278124]
[1760224773686,0.001,3749.2,3749.1,22.40278124]
[1760224774908,0.001,3749.2,3749.1,23.63278124]
[1760224776318,7.321103,3749.2,3749.1,21.11530682]
[1760224776485,4.091503,3749.2,3749.1,22.34530682]
[1760224776688,1.921,3749.2,3749.1,22.80730682]
[1760224777285,2.0538,3749.2,3749.1,22.80730682]
[1760224777489,0.1338,3749.2,3749.1,22.34530682]
[1760224777813,0.1338,3749.2,3749.1,22.80730682]
[1760224778017,0.1338,3749.2,3749.1,26.70778124]
[1760224779222,0.001,3749.2,3749.1,26.70778124]
[1760224779511,0.001,3749.2,3749.1,27.93778124]
[1760224779850,0.001,3749.2,3749.1,27.93978124]
[1760224780713,0.001,3749.2,3749.1,29.16978124]
[1760224781736,0.001,3749.2,3749.1,29.30258124]
[1760224782139,0.001,3749.2,3749.1,30.53258124]
[1760224782643,0.001,3749.2,3749.1,30.39978124]
[1760224783509,0.001,3749.2,3749.1,31.62978124]
[1760224784230,0.001,3749.2,3749.1,32.26338124]
[1760224784809,0.001,3749.2,3749.1,34.77978124]
[1760224785241,0.001,3749.2,3749.1,32.85978124]
[1760224786216,0.001,3749.2,3749.1,34.08978124]
[1760224786733,0.001,3749.2,3749.1,34.72338124]
[1760224787746,0.001,3749.2,3749.1,35.31978124]
[1760224788345,0.001,3749.2,3749.1,35.95338124]
[1760224788715,0.001,3750.0,3749.9,3.30033777]
[1760224788716,1e-08,3750.0,3749.9,3.30033777]
[1760224788920,1e-08,3750.0,3749.9,3.63037155]
[1760224789246,1e-08,3750.0,3749.9,5.34373892]
[1760224789412,1e-08,3750.0,3749.9,5.31707155]
[1760224790618,1e-08,3750.0,3749.9,6.54707155]
[1760224791815,1e-08,3750.0,3749.9,7.77707155]
[1760224792652,1e-08,3750.9,3750.8,2.66609789]
[1760224792856,1e-08,3750.9,3750.8,2.93270768]
[1760224793038,1e-08,3750.9,3750.8,5.28856865]
[1760224793350,1e-08,3751.7,3751.6,2.66552937]
[1760224793560,1e-08,3751.7,3751.6,2.69218466]
[1760224793725,1e-08,3751.7,3751.6,4.30051032]
[1760224794323,1e-08,3751.7,3751.6,5.55716561]
[1760224794519,1e-08,3751.7,3751.6,5.53051032]
[1760224795771,1e-08,3751.7,3751.6,6.76051032]
[1760224797281,1e-08,3751.7,3751.6,7.99051032]
[1760224798787,1e-08,3751.7,3751.6,9.22051032]
[1760224800047,1e-08,3751.7,3751.6,10.45051032]
[1760224801255,1e-08,3751.7,3751.6,9.81691032]
[1760224801583,1e-08,3751.7,3751.6,11.68051032]
[1760224801783,1e-08,3751.7,3751.6,11.04691032]
[1760224802319,0.001,3752.1,3752.0,2.6652452]
[1760224802550,0.001,3753.2,3753.1,2.66446404]
[1760224802838,0.001,3753.2,3753.1,3.13006404]
[1760224803036,0.001,3753.2,3753.1,3.15670868]
[1760224803192,0.001,3753.2,3753.1,3.26286404]
[1760224803392,0.001,3753.2,3753.1,3.87794637]
[1760224804005,0.001,3753.2,3753.1,5.10794637]
[1760224804205,0.001,3753.2,3753.1,4.49286404]
[1760224804855,0.001,3753.2,3753.1,4.51950868]
[1760224805344,0.001,3753.2,3753.1,6.35646404]
[1760224806311,1e-08,3754.0,3753.9,2.66389621]
[1760224806508,1e-08,3754.0,3753.9,2.93028583]
[1760224806711,1e-08,3754.0,3753.9,4.05612479]
[1760224806920,1e-08,3754.0,3753.9,5.25948583]
[1760224808341,1e-08,3754.0,3753.9,6.48948583]
[1760224809637,1e-08,3754.0,3753.9,7.71948583]
[1760224811125,1e-08,3754.0,3753.9,8.94948583]
[1760224812057,1e-08,3754.0,3753.9,10.86948583]
[1760224812443,1e-08,3754.0,3753.9,12.09948583]
[1760224813209,1e-08,3754.0,3753.9,11.46588583]
[1760224813829,1e-08,3754.0,3753.9,12.09948583]
[1760224814108,1e-08,3754.0,3753.9,10.77588583]
[1760224814470,1e-08,3754.0,3753.9,10.50949621]
[1760224814978,1e-08,3754.0,3753.9,11.14309621]
[1760224815287,1e-08,3754.0,3753.9,10.50949621]
[1760224815486,1e-08,3754.0,3753.9,11.73949621]
[1760224815688,1e-08,3754.0,3753.9,12.37309621]
[1760224815865,1e-08,3754.0,3753.9,13.87680527]
[1760224816567,1e-08,3754.0,3753.9,14.00960527]
[1760224816967,1e-08,3754.0,3753.9,15.23960527]
[1760224818394,1e-08,3754.0,3753.9,16.46960527]
[1760224819694,0.1817,3758.2,3754.4,0.6336]
[1760224819892,0.1817,3758.2,3754.3,0.6336]
[1760224819893,0.1817,3758.2,3756.3,2.88559418]
[1760224820193,0.1817,3758.2,3756.3,3.44038267]
[1760224820494,0.1817,3758.2,3756.3,3.90598267]
[1760224821061,0.1822,3757.6,3756.3,4.58119418]
[1760224821289,0.1822,3757.6,3756.3,4.35779418]
[1760224821678,0.36873854,3757.8,3756.3,4.38441612]
[1760224821871,0.36873854,3757.8,3756.3,4.35779418]
[1760224822088,0.4105,3757.7,3756.3,4.35779418]
[1760224822288,3.42984527,3758.1,3756.3,4.35779418]
[1760224822289,2.1012,3758.3,3756.3,5.61441612]
[1760224822486,0.6336,3758.2,3756.3,6.43780486]
[1760224822685,0.13381819,3758.1,3756.3,6.43780486]
[1760224822996,0.4058,3758.4,3756.3,6.43780486]
[1760224823309,1.92,3758.3,3756.3,6.43780486]
[1760224823602,3.06652019,3758.4,3756.3,6.43780486]
[1760224823603,2.3258,3758.4,3756.3,7.66780486]
[1760224823766,0.54993854,3757.9,3756.3,7.66780486]
[1760224824168,0.76963854,3757.9,3756.3,7.66780486]
[1760224824371,0.1906,3757.6,3756.3,6.81779418]
[1760224825198,0.1906,3757.6,3756.3,8.04779418]
[1760224825688,0.58843854,3757.9,3756.3,8.04779418]
[1760224826004,0.1906,3757.5,3756.3,8.04779418]
[1760224826366,0.36873854,3757.9,3756.3,8.04779418]
[1760224826571,0.1909,3757.4,3756.3,9.27779418]
[1760224827170,6.190746,3757.2,3756.3,8.81219418]
[1760224827371,7.920846,3756.4,3756.3,8.81219418]
[1760224827680,1.921,3756.4,3756.3,9.26199418]
[1760224828008,1.921,3756.4,3756.3,10.04219418]
[1760224828305,1.921,3756.4,3756.3,11.76244267]
[1760224828672,2.66063737,3758.5,3756.3,11.76244267]
[1760224828673,0.1912,3758.5,3756.3,9.10024849]
[1760224828882,0.1912,3758.5,3756.5,2.66205244]
[1760224828883,5.999846,3757.8,3756.5,2.66205244]
[1760224829107,5.999846,3757.6,3756.6,0.4498]
[1760224829316,5.999846,3758.4,3757.8,2.66106479]
[1760224829704,5.999846,3758.4,3757.1,2.66159013]
[1760224829705,0.1328,3757.8,3757.7,2.66119981]
[1760224829902,0.1328,3757.8,3757.5,2.6613438]
[1760224829903,5.999846,3758.4,3757.6,2.66123942]
[1760224830218,5.999846,3758.3,3757.6,2.66123942]
[1760224830386,0.13565885,3758.4,3757.2,0.4498]
[1760224830387,5.999846,3758.4,3757.7,2.66119204]
[1760224830586,0.1912,3758.5,3757.8,2.66107127]
[1760224830807,1.92,3758.1,3757.6,2.66125782]
[1760224831087,1.92,3758.1,3757.5,1.23]
[1760224831088,5.999846,3758.0,3757.5,3.8913044]
[1760224831288,5.999846,3757.6,3757.5,1.23]
[1760224831488,7.919846,3757.6,3757.5,1.23]
[1760224832112,7.869846,3757.6,3757.5,2.46]
[1760224832920,8.065546,3757.6,3757.5,2.46]
[1760224833289,11.36041915,3757.6,3757.5,2.46]
[1760224833628,11.72915769,3757.6,3757.5,3.69]
[1760224834420,8.43428454,3757.6,3757.5,3.69]
[1760224834596,8.065546,3757.6,3757.5,3.69]
[1760224834779,8.065546,3757.6,3757.5,4.92]
[1760224835705,7.869846,3757.6,3757.5,4.92]
[1760224835902,8.065546,3757.6,3757.5,4.92]
[1760224836097,8.065546,3757.6,3757.5,6.15]
[1760224836715,7.869846,3757.6,3757.5,6.15]
[1760224837486,8.065746,3757.6,3757.5,7.38]
[1760224838533,12.04147115,3757.6,3757.5,7.38]
[1760224838689,13.47147115,3757.6,3757.5,3.09742287]
[1760224838883,13.47147115,3757.6,3757.5,4.32742287]
[1760224840218,13.47147115,3757.6,3757.5,5.55742287]
[1760224840996,12.04147115,3757.6,3757.5,5.55742287]
[1760224841312,11.72935769,3757.6,3757.5,5.55742287]
[1760224841620,12.04147115,3757.6,3757.5,5.55742287]
[1760224841917,12.04147115,3757.6,3757.5,6.78742287]
[1760224843186,12.04147115,3757.6,3757.5,8.01742287]
[1760224844440,3.2957233,3756.4,3756.3,3.052578]
[1760224844652,35.77836184,3756.4,3756.3,3.052578]
[1760224844815,36.0904753,3756.4,3756.3,3.052578]
[1760224845342,35.77836184,3756.4,3756.3,3.052578]
[1760224845843,35.77836184,3756.4,3756.3,4.282578]
[1760224846033,36.0904753,3756.4,3756.3,4.282578]
[1760224847209,35.77836184,3756.4,3756.3,4.282578]
[1760224847442,35.77836184,3756.4,3756.3,5.512578]
[1760224848541,36.0904753,3756.4,3756.3,5.512578]
[1760224848745,36.0904753,3756.4,3756.3,6.742578]
[1760224850016,36.0904753,3756.4,3756.3,7.972578]
[1760224850216,36.0904753,3756.4,3755.6,0.002]
[1760224850217,3.29593593,3756.1,3755.6,0.002]
[1760224850538,3.29593593,3756.1,3754.0,2.66382525]
[1760224850539,0.198,3754.6,3754.0,2.66382525]
[1760224850761,0.198,3754.6,3754.1,1.64675343]